Workbook

Sheet кмпл2
B3: ІНФОРМАЦІЯ про надходження і використання благодійних пожертв від фізичних та юридичних осіб по Київській міській психоневрологічній лікарні № 2 за ІV квартал 2019 року
A4: найменування закладу охорони здоров′я
A5: № пп | B5: Найменування юридичної особи (або позначення фізичної особи) | C5: Благодійні пожертви, що були отримані закладом охорони здоров'я від фізичних та юридичних осіб | F5: Всього отримано благодійних пожертв, тис. грн | G5: Використання закладом охорони здоров'я благодійних пожертв, отриманих у грошовій (товари і послуг) формі | K5: Залишок невикористаних грошових коштів, товарів та послуг на кінець звітного періоду, тис. грн
C6: В грошовій форм, тис. грн | D6: В натуральній формі (товари і послуги), тис. грн | E6: Перелік товарів і послуг в натуральній формі (канцтовари, господарські товари, будівельні товари, медикаменти та перев'язувальні матеріали, продукти харчування, м"який інвентар, основні засоби та інші) | G6: Напрямки використання у грошовій формі (стаття витрат) | H6: Сума, тис. грн | I6: Перелік використаних товарів та послуг у натуральній формі (канцтовари, господарські товари, будівельні товари, медикаменти та перев'язувальні матеріали, продукти харчування, м"який інвентар, основні засоби та інші) | J6: Сума, тис. грн
A7: 1 | B7: Фоп Буренок Т.І. | D7: 0.399 | E7: продукти харчування | F7: =SUM(C7,D7) -> 0.399 | I7: продукти харчування | J7: 0.4
A8: 2 | B8: Фізична особа | C8: 29.79 | F8: =SUM(C8,D8) -> 29.79 | G8: 2210 | H8: 7.16 | I8: комп'ютерні компоненти
G9: 2210 | H9: 7.19 | I9: марковані конверти
F10: 0 | G10: 2210 | H10: 9.93 | I10: господарчі товари
F11: 0 | G11: 2220 | H11: 7.18 | I11: лікарські засоби
F12: 0 | G12: 2240 | H12: 5.86 | I12: послуги з поточного ремонту водопров. Мережі
F13: 0 | G13: 2240 | H13: 2.5 | I13: послуги з поточного ремонту вимірюв приладдя
F14: 0 | G14: 2275 | H14: 4.32 | I14: послуга з вивезення ВГВ
F15: 0 | G15: 3110 | H15: 27.94 | I15: комп'ютери в комплекті
F16: 0
F17: 0
F18: 0
F19: 0
F20: 0
F21: 0
F22: 0
F23: 0
F24: 0
F25: 0
F26: 0
F27: 0
F28: 0
F29: 0
F30: 0
F31: 0
F32: 0
F33: 0
F34: 0
F35: 0
F36: 0
F37: 0
F38: 0
F39: 0
F40: 0
F41: 0
F42: 0
F43: 0
F44: 0
F45: 0
F46: 0
F47: 0
F48: 0
F49: 0
B50: ВСЬОГО по закладу | C50: =SUM(C7:C49) -> 29.79 | D50: =SUM(D7:D49) -> 0.399 | F50: 30.189 | H50: =SUM(H7:H49) -> 72.08 | J50: =SUM(J7:J49) -> 0.4 | K50: 1.8
B53: Голова комісії з реорганізації | G53: Петро ЛІХТАНСЬКИЙ
F54: (підпис) (ініціали і прізвище)
B55: Заступник голови комісії з реорганізації - головний бухгалтер | G55: Світлана Сахно
F56: (підпис) (ініціали і прізвище)

Sheet кмпл3
I1: Додаток до листа
I2: від 01.04.2019 № 061-3533
B3: ІНФОРМАЦІЯ про надходження і використання благодійнихпожертв від фізичних та юридичних осіб _Київської міської психоневрологічної лікарні №3 за 4 квартал 2019 року
A4: найменування закладу охорони здоров′я
A5: № пп | B5: Найменування юридичної особи (або позначення фізичної особи) | C5: Благодійні пожертви, що були отримані закладом охорони здоров'я від фізичних та юридичних осіб | F5: Всього отримано благодійних пожертв, тис. грн | G5: Використання закладом охорони здоров'я благодійних пожертв, отриманих у грошовій (товари і послуг) формі | K5: Залишок невикористаних грошових коштів, товарів та послуг на кінець звітного періоду, тис. грн
C6: В грошовій форм, тис. грн | D6: В натуральній формі (товари і послуги), тис. грн | E6: Перелік товарів і послуг в натуральній формі (канцтовари, господарські товари, будівельні товари, медикаменти та перев'язувальні матеріали, продукти харчування, м"який інвентар, основні засоби та інші) | G6: Напрямки використання у грошовій формі (стаття витрат) | H6: Сума, тис. грн | I6: Перелік використаних товарів та послуг у натуральній формі (канцтовари, господарські товари, будівельні товари, медикаменти та перев'язувальні матеріали, продукти харчування, м"який інвентар, основні засоби та інші) | J6: Сума, тис. грн
B7: Фізична особа | C7: 115.62 | D7: 11 | E7: миючі засоби | F7: =SUM(C7,D7) -> 126.62 | G7: 2210 | I7: миючі засоби | J7: 11
D8: 19.98 | E8: інвентар, меблі | F8: =SUM(C8,D8) -> 19.98 | H8: 28.3 | I8: інвентар, меблі | J8: =D8 -> 19.98
B9: Благодійний фонд "Фундація АНТИСНІД-Україна" | D9: 2.2 | E9: вироби медичного призначення | F9: 2.2 | I9: вироби медичного призначення | J9: 2.2
D10: 23 | E10: послуги з встановлення металопластикових конструкцій | F10: 23 | I10: послуги з встановлення металопластикових конструкцій | J10: 23
F11: 0
F12: 0
F13: 0
F14: 0
F15: 0
F16: 0
F17: 0
F18: 0
F19: 0
F20: 0
F21: 0
F22: 0
F23: 0
F24: 0
F25: 0
F26: 0
F27: 0
F28: 0
F29: 0
F30: 0
F31: 0
F32: 0
F33: 0
F34: 0
F35: 0
F36: 0
F37: 0
F38: 0
F39: 0
F40: 0
F41: 0
F42: 0
F43: 0
F44: 0
F45: 0
F46: 0
B47: ВСЬОГО по закладу | C47: =SUM(C7:C46) -> 115.62 | D47: =SUM(D7:D46) -> 56.18 | F47: 171.8 | H47: =SUM(H7:H46) -> 28.3 | J47: =SUM(J7:J46) -> 56.18 | K47: =C47-H47 -> 87.32
B50: Голова комісії з реорганізації | G50: І.В.Врублевська
F51: (підпис) (ініціали і прізвище)
B52: Головний бухгалтер | G52: О.Г.Ященко
F53: (підпис) (ініціали і прізвище)

Sheet кмтл1
J1: Додаток до листа
J2: від 30.12.2019 № 061-12683
B3: ІНФОРМАЦІЯ про надходження і використання благодійних пожертв від фізичних та юридичних осіб _Київська міська туберкульозна лікаря №1 з диспансерним відділеням_за_ІV_квартал_2019_року
A4: найменування закладу охорони здоров′я
A5: № пп | B5: Найменування юридичної особи (або позначення фізичної особи) | C5: Благодійні пожертви, що були отримані закладом охорони здоров'я від фізичних та юридичних осіб | F5: Всього отримано благодійних пожертв, тис. грн | G5: Використання закладом охорони здоров'я благодійних пожертв, отриманих у грошовій (товари і послуг) формі | K5: Залишок невикористаних грошових коштів, товарів та послуг на кінець звітного періоду, тис. грн
C6: В грошовій форм, тис. грн | D6: В натуральній формі (товари і послуги), тис. грн | E6: Перелік товарів і послуг в натуральній формі (канцтовари, господарські товари, будівельні товари, медикаменти та перев'язувальні матеріали, продукти харчування, м"який інвентар, основні засоби та інші) | G6: Напрямки використання у грошовій формі (стаття витрат) | H6: Сума, тис. грн | I6: Перелік використаних товарів та послуг у натуральній формі (канцтовари, господарські товари, будівельні товари, медикаменти та перев'язувальні матеріали, продукти харчування, м"який інвентар, основні засоби та інші) | J6: Сума, тис. грн
A7: 1 | B7: Благодійний фонд "100 відсотів життя. Київський регіон" | D7: =0.772+10.234+1.283 -> 12.289 | E7: технічне обладнання | F7: =SUM(C7,D7) -> 12.289 | I7: технічне обладнання | J7: 12.29
D8: =6.558+0.516 -> 7.074 | E8: витратні матеріали | F8: =SUM(C8,D8) -> 7.074 | I8: витратні матеріали | J8: 7.07
D9: =3.278+6.105+0.555 -> 9.938 | E9: м'який інвентар | F9: =SUM(C9,D9) -> 9.938 | I9: м'який інвентар | J9: 9.94
D10: =6.82+24.964 -> 31.784 | E10: обладнання довгострокового користування | F10: =SUM(C10,D10) -> 31.784 | I10: обладнання довгострокового користування | J10: 31.78
A11: 2 | B11: Благодійна організація "Фонд Олени Пінчук" | D11: =3.986+13.92+4.911 -> 22.817 | E11: витратні матеріали | F11: 22.817 | I11: витратні матеріали | J11: 22.82
D12: =6.661 -> 6.661 | E12: медикаменти | F12: 6.661 | I12: медикаменти | J12: 6.66
D13: =10.17+10.17+5.07 -> 25.41 | E13: м'який інвентар | F13: =SUM(C13,D13) -> 25.41 | I13: м'який інвентар | J13: =10.17+10.17+5.07 -> 25.41
A14: 3 | B14: Департамент соціальної політики виконавчого органу Київської міської ради (Київської міської державної адміністрація) згідно міської цільової програми «Турбота. Назустріч киянам» | D14: 84.6 | E14: обладнання довгострокового користування - пандус | F14: =SUM(C14,D14) -> 84.6 | I14: обладнання довгострокового користування - пандус | J14: 84.6
A15: 4 | B15: ДУ «Центр громадського здоров’я Міністерства охорони здоров’я України» за кошти Глобального фонду для боротьби СНІДом, туберкульозом та малярією | D15: 69.9 | E15: обладнання довгострокового користування - ноутбуки | F15: 69.9 | I15: обладнання довгострокового користування - ноутбуки | J15: 69.9
F16: 0
F17: 0
F18: 0
F19: 0
F20: 0
F21: 0
F22: 0
F23: 0
F24: 0
F25: 0
F26: 0
F27: 0
F28: 0
F29: 0
F30: 0
F31: 0
F32: 0
F33: 0
F34: 0
F35: 0
F36: 0
F37: 0
F38: 0
F39: 0
F40: 0
F41: 0
F42: 0
F43: 0
F44: 0
F45: 0
F46: 0
F47: 0
F48: 0
F49: 0
F50: 0
F51: 0
B52: ВСЬОГО по закладу | C52: =SUM(C7:C51) -> 0 | D52: =SUM(D7:D51) -> 270.473 | F52: 270.473 | H52: =SUM(H7:H51) -> 0 | J52: =SUM(J7:J51) -> 270.47 | K52: =C52-H52 -> 0
B55: Голова комісії | G55: Павленко С.Г.
F56: (підпис) (ініціали і прізвище)
B57: Член комісії | G57: Смаглюк Н.І.
F58: (підпис) (ініціали і прізвище)

Sheet КМТЛ № 2
M1: Додаток до листа
M2: від ________ 2018 № ______
B3: ІНФОРМАЦІЯ
A4: найменування закладу охорони здоров′я
A5: № пп | B5: Найменування юридичної особи (або позначення фізичної особи) | C5: Благодійні пожертви, що були отримані закладом охорони здоров'я від фізичних та юридичних осіб | F5: Всього отримано благодійних пожертв, тис. грн | G5: Використання закладом охорони здоров'я благодійних пожертв, отриманих у грошовій (товари і послуг) формі | K5: Залишок невикористаних грошових коштів, товарів та послуг на кінець звітного періоду, тис. грн
C6: В грошовій форм, тис. грн | D6: В натуральній формі (товари і послуги), тис. грн | E6: Перелік товарів і послуг в натуральній формі (канцтовари, господарські товари, будівельні товари, медикаменти та перев'язувальні матеріали, продукти харчування, м"який інвентар, основні засоби та інші) | G6: Напрямки використання у грошовій формі (стаття витрат) | H6: Сума, тис. грн | I6: Перелік використаних товарів та послуг у натуральній формі (канцтовари, господарські товари, будівельні товари, медикаменти та перев'язувальні матеріали, продукти харчування, м"який інвентар, основні засоби та інші) | J6: Сума, тис. грн
A7: 1 | B7: ДП "Укрмедпостач" МОЗ України | D7: 16.409 | E7: наркотичні лікарські засоби для замісної терапії | F7: =SUM(C7,D7) -> 16.409 | I7: наркотичні лікарські засоби для замісної терапії | J7: 16.409
F8: 0
F9: 0
F10: 0
F11: 0
F12: 0
F13: 0
F14: 0
F15: 0
F16: 0
F17: 0
A18: 3 | F18: 0
F19: 0
F20: 0
F21: 0
F22: 0
F23: 0
F24: 0
F25: 0
F26: 0
F27: 0
F28: 0
F29: 0
F30: 0
F31: 0
F32: 0
F33: 0
F34: 0
F35: 0
F36: 0
F37: 0
F38: 0
F39: 0
F40: 0
F41: 0
F42: 0
F43: 0
F44: 0
F45: 0
F46: 0
F47: 0
F48: 0
B49: ВСЬОГО по закладу | C49: =SUM(C7:C48) -> 0 | D49: =SUM(D7:D48) -> 16.409 | F49: 16.409 | H49: =SUM(H7:H48) -> 0 | J49: =SUM(J7:J48) -> 16.409 | K49: =C49-H49 -> 0
B52: Заступник керівника установи | G52: Целюк Г.Б.
F53: (підпис) (ініціали і прізвище)
B54: Головний бухгалтер | G54: Євенко А.М.
F55: (підпис) (ініціали і прізвище)

Sheet КМКШВЛ
I1: Додаток до листа
I2: від 25.07.2017 №848
B3: ІНФОРМАЦІЯ по КИЇВСЬКІЙ МІСЬКІЙ КЛІНІЧНІЙ ШКІРНО-ВЕНЕРОЛОГІЧНІЙ ЛІКАРНІ за 4 квартал 2019року
A4: найменування закладу охорони здоров′я
A5: Період | B5: Найменування юридичної особи (або позначення фізичної особи) | C5: Благодійні пожертви, що були отримані закладом охорони здоров'я від фізичних та юридичних осіб | F5: Всього отримано благодійних пожертв, тис. грн | G5: Використання закладом охорони здоров'я благодійних пожертв, отриманих у грошовій (товари і послуг) формі | K5: Залишок невикористаних грошових коштів, товарів та послуг на кінець звітного періоду, тис. грн
C6: В грошовій форм, тис. грн | D6: В натуральній формі (товари і послуги), тис. грн | E6: Перелік товарів і послуг в натуральній формі (канцтовари, господарські товари, будівельні товари, медикаменти та перев'язувальні матеріали, продукти харчування, м"який інвентар, основні засоби та інші) | G6: Напрямки використання у грошовій формі (стаття витрат) | H6: Сума, тис. грн | I6: Перелік використаних товарів та послуг у натуральній формі (канцтовари, господарські товари, будівельні товари, медикаменти та перев'язувальні матеріали, продукти харчування, м"який інвентар, основні засоби та інші) | J6: Сума, тис. грн
A7: 4квартал | B7: Фізичні особи | D7: 15.18 | E7: господарські товари | F7: =SUM(C7,D7) -> 15.18 | G7: 2210 | H7: 15.18 | I7: господарські товари | J7: 15.18
B8: ТОВ "ЛЮМ ҆҆ЄРА ФАРМ" | D8: 20 | E8: інвентар | F8: =SUM(C8,D8) -> 20 | G8: 2210 | H8: 20 | I8: інвентар | J8: 20
B9: ТОВ "ГЛЕДФАРМ ЛТД" | D9: 4.22 | E9: медикаменти | F9: =SUM(C9,D9) -> 4.22 | G9: 2220 | H9: 4.22 | I9: медикаменти | J9: 4.22
B10: ДУ "Центр громадського здоров҆ я МОЗ України" | D10: 0.89 | E10: медикаменти | F10: =SUM(C10,D10) -> 0.89 | G10: 2220 | H10: 0.89 | I10: медикаменти | J10: 0.89
B11: Фізичні особи | C11: 945.34 | F11: =SUM(C11,D11) -> 945.34 | G11: 2210 | H11: 161.43 | I11: меблі | J11: 161.43
B12: ТОВ "Краматорський феросплавний завод" | C12: 85 | F12: 0.81 | G12: 2240 | H12: 322.68 | I12: поточний ремонт приміщень | J12: 322.68
B13: ТОВ "Краматорський металопрокатний завод" | C13: 25 | F13: =SUM(C13,D13) -> 25 | G13: 2250 | H13: 20.1 | I13: проїзні квитки | J13: 20.1
F14: 0 | G14: 2273 | H14: 30.82 | I14: оплата електроенергії | J14: 30.82
F15: 0 | G15: 3110 | H15: 346.79 | I15: мед. обладнання | J15: 346.79
F16: 0
F17: 0
F18: 0
F21: =SUM(C21,D21) -> 0
F22: 0
F23: 0
F24: 0
F25: 0
F26: 0
F27: 0
F28: 0
F29: 0
F30: 0
F31: 0
F32: 0
F33: 0
F34: 0
F35: 0
F36: 0
F37: 0
F38: 0
F39: 0
F40: 0
F41: 0
F42: 0
F43: 0
F44: 0
F45: 0
F46: 0
F47: 0
F48: 0
F49: 0
F50: 0
F51: 0
F52: 0
B53: ВСЬОГО по закладу | C53: =SUM(C7:C52) -> 1055.34 | D53: =SUM(D7:D52) -> 40.29 | F53: 1095.63 | H53: =SUM(H7:H52) -> 922.11 | J53: =SUM(J7:J52) -> 922.11 | K53: =C53+D53-H53 -> 173.52
B55: Головний бухгалтер | G55: С.І.Кущ
F56: (підпис) (ініціали і прізвище)

Sheet ТМО 0712020
M1: Додаток до листа
M2: від ________ 2018 № ______
B3: ІНФОРМАЦІЯ
A4: найменування закладу охорони здоров′я
A5: № пп | B5: Найменування юридичної особи (або позначення фізичної особи) | C5: Благодійні пожертви, що були отримані закладом охорони здоров'я від фізичних та юридичних осіб | F5: Всього отримано благодійних пожертв, тис. грн | G5: Використання закладом охорони здоров'я благодійних пожертв, отриманих у грошовій (товари і послуг) формі | K5: Залишок невикористаних грошових коштів, товарів та послуг на кінець звітного періоду, тис. грн
C6: В грошовій форм, тис. грн | D6: В натуральній формі (товари і послуги), тис. грн | E6: Перелік товарів і послуг в натуральній формі (канцтовари, господарські товари, будівельні товари, медикаменти та перев'язувальні матеріали, продукти харчування, м"який інвентар, основні засоби та інші) | G6: Напрямки використання у грошовій формі (стаття витрат) | H6: Сума, тис. грн | I6: Перелік використаних товарів та послуг у натуральній формі (канцтовари, господарські товари, будівельні товари, медикаменти та перев'язувальні матеріали, продукти харчування, м"який інвентар, основні засоби та інші) | J6: Сума, тис. грн
B7: ПТД № 1 | F7: =SUM(C7,D7) -> 0
A8: 1 | B8: Благодійний фонд "100 відсотків життя. Київський регіон" | D8: 9.2 | E8: Ноутбук | F8: 9.2 | I8: Благодійний фонд "100 відсотків життя. Київський регіон" | J8: 9.2
A9: 2 | B9: ДУ "Центр громадського здоров'я МОЗ України" МБФ "Альянс громадського здоров'я" | D9: 46.6 | E9: Ноутбуки | F9: 46.6 | I9: ДУ "Центр громадського здоров'я МОЗ України" МБФ "Альянс громадського здоров'я" | J9: 46.6
F10: 0
A11: І | B11: КМТЛ № 1 | F11: 0
A12: 1 | B12: Благодійний фонд "100 відсотів життя. Київський регіон" | D12: =0.772+10.234+1.283 -> 12.289 | E12: технічне обладнання | F12: 12.289 | I12: технічне обладнання | J12: 12.29
D13: =6.558+0.516 -> 7.074 | E13: витратні матеріали | F13: 7.074 | I13: витратні матеріали | J13: 7.07
D14: =3.278+6.105+0.555 -> 9.938 | E14: м'який інвентар | F14: 9.938 | I14: м'який інвентар | J14: 9.94
D15: =6.82+24.964 -> 31.784 | E15: обладнання довгострокового користування | F15: 31.784 | I15: обладнання довгострокового користування | J15: 31.78
A16: 2 | B16: Благодійна організація "Фонд Олени Пінчук" | D16: =3.986+13.92+4.911 -> 22.817 | E16: витратні матеріали | F16: 22.817 | I16: витратні матеріали | J16: 22.82
D17: =6.661 -> 6.661 | E17: медикаменти | F17: 6.661 | I17: медикаменти | J17: 6.66
D18: =10.17+10.17+5.07 -> 25.41 | E18: м'який інвентар | F18: 25.41 | I18: м'який інвентар | J18: =10.17+10.17+5.07 -> 25.41
B19: Департамент соціальної політики виконавчого органу Київської міської ради (Київської міської державної адміністрація) згідно міської цільової програми «Турбота. Назустріч киянам» | D19: 84.6 | E19: обладнання довгострокового користування - пандус | I19: обладнання довгострокового користування - пандус | J19: 84.6
B20: ДУ «Центр громадського здоров’я Міністерства охорони здоров’я України» за кошти Глобального фонду для боротьби СНІДом, туберкульозом та малярією | D20: 69.9 | E20: обладнання довгострокового користування - ноутбуки | F20: =SUM(C20,D20) -> 69.9 | I20: обладнання довгострокового користування - ноутбуки | J20: 69.9
A22: ІІ | B22: КМТЛ № 2 | F22: =SUM(C22,D22) -> 0
A23: 1 | B23: ДП "Укрмедпостач" МОЗ України | D23: 16.409 | E23: наркотичні лікарські засоби для замісної терапії | F23: 16.409 | I23: наркотичні лікарські засоби для замісної терапії | J23: 16.409
F24: 0
F25: 0
F26: 0
F27: 0
F28: 0
F29: 0
F30: 0
F31: 0
F32: 0
F33: 0
F34: 0
F35: 0
F36: 0
F37: 0
F38: 0
F39: 0
F40: 0
F41: 0
F42: 0
F43: 0
F44: 0
F45: 0
F46: 0
F47: 0
F48: 0
F49: 0
F50: 0
F51: 0
F52: 0
F53: 0
F54: 0
F55: 0
B56: ВСЬОГО по закладу | C56: =SUM(C11:C55) -> 0 | D56: =SUM(D8:D55) -> 342.682 | F56: 342.682 | H56: =SUM(H11:H55) -> 0 | J56: =SUM(J8:J55) -> 342.679 | K56: =C56-H56 -> 0
B59: Заступник керівника установи | G59: Осауленко Н.В.
F60: (підпис) (ініціали і прізвище)
B61: Головний бухгалтер | G61: Твердохліб О.В.
F62: (підпис) (ініціали і прізвище)

Sheet перинальний
M1: Додаток до листа
M2: від 01.04.2019 №061-3533
B3: ІНФОРМАЦІЯ про надходження і використання благодійних пожертв від фізичних та юридичних осіб Київського міського центру репродуктивної та перинатальної медицини за IV квартал 2019 року
A4: найменування закладу охорони здоров′я
A5: № пп | B5: Найменування юридичної особи (або позначення фізичної особи) | C5: Благодійні пожертви, що були отримані закладом охорони здоров'я від фізичних та юридичних осіб | F5: Всього отримано благодійних пожертв, тис. грн | G5: Використання закладом охорони здоров'я благодійних пожертв, отриманих у грошовій (товари і послуг) формі | K5: Залишок невикористаних грошових коштів, товарів та послуг на кінець звітного періоду, тис. грн
C6: В грошовій форм, тис. грн | D6: В натуральній формі (товари і послуги), тис. грн | E6: Перелік товарів і послуг в натуральній формі (канцтовари, господарські товари, будівельні товари, медикаменти та перев'язувальні матеріали, продукти харчування, м"який інвентар, основні засоби та інші) | G6: Напрямки використання у грошовій формі (стаття витрат) | H6: Сума, тис. грн | I6: Перелік використаних товарів та послуг у натуральній формі (канцтовари, господарські товари, будівельні товари, медикаменти та перев'язувальні матеріали, продукти харчування, м"який інвентар, основні засоби та інші) | J6: Сума, тис. грн
A7: 1 | B7: Фонд сприяння народжуваності в Україні (ПП "Медіта") | D7: =12.477+10.417+24.292 -> 47.186 | E7: медикаменти | F7: =SUM(C7,D7) -> 47.186 | I7: медикаменти | J7: =12.477+10.417+24.292 -> 47.186
B8: КНП "КМЦК" | D8: =4.035+7.443+6.687+2.414+1.913 -> 22.492 | E8: компоненти і препарати крові | F8: =SUM(C8,D8) -> 22.492 | I8: компоненти і препарати крові | J8: =4.035+7.443+6.687+2.414+1.913 -> 22.492
B9: ФО Щиголь В.А. | D9: 3.061 | E9: МФУ Brother DCP | F9: 3.061 | I9: МФУ Brother DCP | J9: 3.061
B10: Одеський національний медичний університет | D10: 36.604 | E10: Оргалутран | F10: 36.604 | I10: Оргалутран | J10: 36.604
A11: 2 | B11: Фізична особа | C11: 586.957 | F11: 586.957
F12: 0
F13: 0 | G13: 2210 | H13: 7.1 | I13: меблі медичні
F14: 0 | G14: 2210 | H14: 15.399 | I14: товари господ. призначення
F15: 0 | G15: 2210 | H15: =16.1 -> 16.1 | I15: офісні меблі
F16: 0 | G16: 2210 | H16: 7.8 | I16: постільна білизна
F17: 0
F18: 0 | G18: 2220 | H18: =380 -> 380 | I18: медикаменти
F19: 0 | G19: 2220 | H19: 10 | I19: реактиви лабораторні
F20: 0 | G20: 2220 | H20: 186.56 | I20: покриття операційні
F22: 0 | G22: 2240 | H22: 3.79 | I22: ремонт шлагбаума
F23: 0 | G23: 2240 | H23: 7.15 | I23: заправка картриджів
F24: 0 | G24: 2240 | H24: 1.45 | I24: ремонт комп.техніки
F25: 0
F26: 0 | G26: 2282 | H26: =11.56+0.65+1.95 -> 14.16 | I26: курси
F28: 0
F29: 0
B30: ВСЬОГО по закладу | C30: =SUM(C7:C29) -> 586.957 | D30: =SUM(D7:D29) -> 109.343 | F30: 696.3 | H30: =SUM(H7:H29) -> 649.509 | J30: =SUM(J7:J29) -> 109.343 | K30: =C30-H30 -> -62.552
B33: Директор | G33: В.В.Камінський
F34: (підпис) (ініціали і прізвище)
B35: Головний бухгалтер | G35: Л.В. Іванець
F36: (підпис) (ініціали і прізвище)

Sheet кмкоц
B1: ІНФОРМАЦІЯ про надходження і використання благодійних пожертв від фізичних та юридичних осіб Київський міський клінічний онкологічний центр за 4 квартал 2019 року
A2: найменування закладу охорони здоров′я
A3: № пп | B3: Найменування юридичної особи (або позначення фізичної особи) | C3: Благодійні пожертви, що були отримані закладом охорони здоров'я від фізичних та юридичних осіб | F3: Всього отримано благодійних пожертв, тис. грн | G3: Використання закладом охорони здоров'я благодійних пожертв, отриманих у грошовій (товари і послуг) формі | K3: Залишок невикористаних грошових коштів, товарів та послуг на кінець звітного періоду, тис. грн
C4: В грошовій форм, тис. грн | D4: В натуральній формі (товари і послуги), тис. грн | E4: Перелік товарів і послуг в натуральній формі (канцтовари, господарські товари, будівельні товари, медикаменти та перев'язувальні матеріали, продукти харчування, м"який інвентар, основні засоби та інші) | G4: Напрямки використання у грошовій формі (стаття витрат) | H4: Сума, тис. грн | I4: Перелік використаних товарів та послуг у натуральній формі (канцтовари, господарські товари, будівельні товари, медикаменти та перев'язувальні матеріали, продукти харчування, м"який інвентар, основні засоби та інші) | J4: Сума, тис. грн
A5: 1 | B5: Фізичні особи | C5: 7295.1 | F5: =C5 -> 7295.1
A6: 2 | B6: ФОП Колодій | G6: 2220 | H6: 115.6 | I6: медикаменти
A7: 3 | B7: ФОП Чепак | G7: 2220 | H7: 9 | I7: леза
A8: 4 | B8: ТОВ Діалог-Діагностик | G8: 2220 | H8: =232.49+12.62 -> 245.11 | I8: реактиви
A9: 5 | B9: ТОВ Санмей Україна | G9: 2220 | H9: 4.9 | I9: реактиви
A10: 6 | B10: ФОП Михайленко І.Г. | G10: 2220 | H10: 142.76 | I10: реактиви
A11: 7 | B11: ФОП ПрохоренкоР.В. | G11: 2220 | H11: 107.74 | I11: реактиви
A12: 8 | B12: ТОВ Салюс | G12: 2220 | H12: 3.23 | I12: медикаменти
A13: 9 | B13: ТОВ Екомед | G13: 2220 | H13: 12.54 | I13: засоби мед.призначення
A14: 10 | B14: ТОВ Лабвіта | G14: 2220 | H14: 2.98 | I14: реактиви
A15: 11 | B15: БФ Східна зірка | D15: 15.8 | E15: медикаменти | F15: =D15 -> 15.8 | G15: 2220 | I15: =E15 -> медикаменти | J15: =F15 -> 15.8
A16: 12 | B16: ТОВ Медичний центр М.Т.К. | D16: 791.8 | E16: медикаменти | F16: =D16 -> 791.8 | G16: 2220 | I16: =E16 -> медикаменти | J16: 791.8
A17: 13 | B17: Святош.рай.орг.ТОВ Черв. | D17: 16.3 | E17: медикаменти | F17: 16.3 | G17: 2220 | I17: =E17 -> медикаменти | J17: 16.3
A18: 14 | B18: БФ Відродження | D18: 320.97 | E18: медикаменти | F18: 320.97 | G18: 2220 | I18: медикаменти | J18: 320.97
A19: 15 | B19: МБО Козацький фонд Альбатрос | D19: 1.1 | E19: медикаменти | F19: 1.1 | G19: 2220 | I19: медикаменти | J19: 1.1
A20: 16 | B20: ТОВ Аптеки Фармасі | D20: 3 | E20: медикаменти | F20: 3 | G20: 2220 | I20: медикаменти | J20: 3
A21: 17 | B21: Благод.фонд Светер | D21: 19.55 | E21: медикаменти | F21: 19.55 | G21: 2220 | I21: медикаменти | J21: 19.55
A22: 18 | B22: ТОВ Юрія-Фарм | D22: 2272.5 | E22: медикаменти | F22: 2272.5 | G22: 2220 | I22: медикаменти | J22: 2272.5
A23: 19 | B23: ТОВ Фармпроект | D23: 118.1 | E23: медикаменти | F23: 118.1 | G23: 2220 | I23: медикаменти | J23: 118.1
A24: 20 | B24: БФ Таблеточки | D24: 10.88 | E24: медикаменти | F24: 10.88 | G24: 2220 | I24: медикаменти | J24: 10.88
A25: 21 | B25: Десн.район.орг.Тов.червон.хреста | D25: 33.45 | E25: медикаменти | F25: 33.45 | G25: 2220 | I25: медикаменти | J25: 33.45
A26: 22 | B26: ПП Лабораторія Ербіс | D26: 80 | E26: медикаменти | F26: 80 | G26: 2220 | I26: медикаменти | J26: 80
A27: 23 | B27: ТОВ Торговий дім Новофарм-біос | D27: 29.96 | E27: медикаменти | F27: 29.96 | G27: 2220 | I27: медикаменти | J27: 29.96
A28: 24 | B28: ТОВ Лікар | D28: 25.89 | E28: медикаменти | F28: 25.89 | G28: 2220 | I28: медикаменти | J28: 25.89
A29: 25 | B29: Ерітсідіс Стіліанос | D29: 112.21 | E29: медикаменти | F29: 112.21 | G29: 2220 | I29: медикаменти | J29: 112.21
A30: 26 | B30: ДП Укрмедпостач | D30: 44460.2 | E30: хіміопрепарати | F30: 44460.2 | G30: 2220 | I30: =E30 -> хіміопрепарати | J30: =F30 -> 44460.2
A31: 27 | B31: КНП КМЦК | D31: 1203.5 | E31: кров | F31: 1203.5 | G31: 2220 | I31: =E31 -> кров | J31: =F31 -> 1203.5
A32: 28 | B32: Фізична особа | D32: 11.5 | E32: меблі | F32: 11.5 | G32: 2210 | I32: =E32 -> меблі | J32: 11.5
A33: 29 | B33: БО Східна зірка | D33: 1.7 | E33: канцтовари | F33: 1.7 | G33: 2210 | I33: канцтовари | J33: 1.7
A34: 30 | B34: МБО Козацький фонд Альбатрос | D34: 10 | E34: меблі | F34: 10 | G34: 2210 | I34: меблі | J34: 10
A35: 31 | B35: Фізична особа | D35: 0.5 | E35: відсмоктувач | F35: 0.5 | G35: 2210 | I35: відсмоктувач | J35: 0.5
A36: 32 | B36: ФОП Поляков | D36: 0.5 | E36: меблі | F36: 0.5 | G36: 2210 | I36: меблі | J36: 0.5
A37: 33 | B37: БО ГО Ініціатива + | D37: 46.3 | E37: мед.меблі | F37: 46.3 | G37: 2210 | I37: мед.меблі | J37: =F37 -> 46.3
A38: 34 | B38: БФ Свої | D38: 19.81 | E38: Ліжка баготоф. | F38: 19.81 | G38: 2210 | I38: Ліжка баготоф. | J38: =F38 -> 19.81
A39: 35 | B39: Фіз.особа | D39: =0.26+0.2+0.25 -> 0.71 | E39: пральна машина | F39: 0.71 | G39: 2210 | I39: пральна машина | J39: 0.71
A40: 36 | B40: БФ Свої | D40: 7.9 | E40: Ліжко функціональне | F40: 7.9 | G40: 2210 | I40: Ліжко функціональне | J40: 7.9
A41: 37 | B41: БФ Олива | D41: 0.6 | E41: Ліжко | F41: 0.6 | G41: 2210 | I41: Ліжко | J41: 0.6
A42: 38 | B42: БФ Ініциатива | D42: 6.8 | E42: Ролатори , негатоскоп | F42: 6.8 | G42: 2210 | I42: Ролатори , негатоскоп | J42: 6.8
A43: 39 | B43: БФ Свої | D43: 12.5 | E43: Меблі | F43: 12.5 | G43: 2210 | I43: Меблі | J43: 12.5
A44: 40 | B44: БФ Наша лепта | D44: 13.7 | E44: Кондиціонер | F44: 13.7 | G44: 2210 | I44: Кондиціонер | J44: 13.7
A45: 41 | B45: БФ Ініциатива | D45: 6.4 | E45: витратний матеріал | F45: 6.4 | G45: 2210 | I45: =E45 -> витратний матеріал | J45: 6.4
A46: 42 | B46: КП ГІОЦ | D46: 68.9 | E46: Комп"ютери | F46: 68.9 | G46: 2210 | I46: =E46 -> Комп"ютери | J46: 68.9
A47: 43 | B47: ТОВ Техноснаб | D47: 14.8 | E47: Овочі | F47: 14.8 | G47: 2230 | I47: Овочі | J47: 14.8
A48: 44 | B48: КП ГІОЦ | D48: 868.3 | E48: Комп"ютери | F48: 868.3 | G48: 3110 | I48: =E48 -> Комп"ютери | J48: 868.3
A49: 45 | B49: БФ Хранитель | D49: 19.9 | E49: функціональне ліжко | F49: 19.9 | G49: 3110 | I49: функціональне ліжко | J49: 19.9
A50: 46 | B50: БФ Хранитель | D50: 23.3 | E50: кондиціонери | F50: 23.3 | G50: 3110 | I50: кондиціонери | J50: 23.3
A51: 47 | B51: ФОП Бочарнікова | D51: 13.91 | E51: шафа для взуття | F51: 13.91 | G51: 3110 | I51: шафа для взуття | J51: 13.91
A52: 48 | B52: ФОП Бочарнікова | D52: 82.85 | E52: =I52 -> дит.майданчик | F52: 82.85 | G52: 3110 | I52: дит.майданчик | J52: =F52 -> 82.85
A53: 49 | B53: Педіатри проти раку | D53: 6.55 | E53: =I53 -> пральна машина | F53: 6.55 | G53: 3110 | I53: пральна машина | J53: =F53 -> 6.55
A54: 50 | B54: БФ "Відродження" | D54: 243.96 | E54: одноканальний ел.генератор | F54: 243.96 | G54: 3110 | I54: =E54 -> одноканальний ел.генератор | J54: =F54 -> 243.96
A55: 51 | B55: БО "Благодійний фонд розвитку іновацій медицини "РІМОН" | D55: 19 | E55: шафа витяжна лабораторна | F55: 19 | G55: 3110 | I55: =E55 -> шафа витяжна лабораторна | J55: =F55 -> 19
A56: 52 | B56: ТОВ НІЦ Сканер | E56: кольпоскоп | G56: 3110 | H56: 142.2 | I56: кольпоскоп
A57: 53 | B57: Тов Здраво | G57: 3110 | H57: 7.8 | I57: Лампа операційна
A58: 54 | B58: ПП Бутекс | G58: 2240 | H58: 4.8 | I58: ТО обладнання
A59: 55 | B59: КП ГИОЦ | G59: 2240 | H59: 9 | I59: Обслуг прогр. Забезпеч.
A60: 56 | B60: ПП Мальчуковський | G60: 2210 | H60: 7 | I60: Медбланки
A61: 57 | B61: ТОВ Укрмедлаб | G61: 2240 | H61: 4.2 | I61: міжлаб.порівняння
A62: 58 | B62: ФОП Кудла | G62: 2240 | H62: 13.2 | I62: інформ. Консульт
A63: 59 | B63: УПО в м. Києві | G63: 2240 | H63: 120.5 | I63: охорона
A64: 60 | B64: Катран | G64: 2210 | H64: 20.5 | I64: меблі
A65: 61 | B65: ДСМ Трейд | G65: 2210 | H65: 13 | I65: принтер, сканер
A66: 62 | B66: Тов Кіспрі Україна | G66: 2210 | H66: 6.7 | I66: Кушетка медична
A67: 63 | B67: Київський крематорій | G67: 2240 | H67: =6.2+4.3 -> 10.5 | I67: Кремація відходів
A68: 64 | B68: ТОВ Еврокопігруп | G68: 2240 | H68: 20.9 | I68: ТО комп. Техніки
A69: 65 | B69: ФОП Баклан | G69: 2240 | H69: 21.3 | I69: ремонт обладн. Харчоблоку
A70: 66 | B70: Фоп Мовлян | G70: 2240 | H70: 7.2 | I70: ремонт мед. Обладнання
A71: 67 | B71: ПАТ ДТЄК Київські електромережі | G71: 2240 | H71: 3.7 | I71: то лічильників тепла
A72: 68 | B72: ТОВ Сіменс медицина | G72: 2240 | H72: 7.2 | I72: діагностика обл.
A73: 69 | B73: ТОВ Будкваліфікадри | G73: 2282 | H73: 6.8 | I73: навчання персоналу
A74: 70 | B74: ТОВ Кантера паеккард | G74: 2240 | H74: 2.4 | I74: ремонт обладнання
A75: 71 | B75: Фоп Живкова | G75: 3110 | H75: 106.9 | I75: Аналізатор імуноферм.
A76: 72 | B76: ТОВ Евротехніка | G76: 3110 | H76: 81.5 | I76: кондиціонери
A77: 73 | B77: ТОВ Інфотел комунікейшн | G77: 2240 | H77: 7.2 | I77: ремонт
A78: 74 | B78: ТОВ Інфотел комунікейшн | G78: 2210 | H78: 2.9 | I78: Цифров. Телефон
A79: 75 | B79: УКР ЦСМ | G79: 2240 | H79: 0.7 | I79: повірка обладнання
A80: 76 | B80: СВ Факторіал | G80: 2240 | H80: =4.9+6.5 -> 11.4 | I80: розробка і затвердж. кошт. Док.
A81: 77 | B81: ФОП Міщянюк | G81: 2240 | H81: 3.2 | I81: ремонт обладнання
A82: 78 | B82: ПРАТ ОСК Княжа | G82: 2240 | H82: 1.7 | I82: страхування
A83: 79 | B83: Фасадбудсервіс | G83: 2210 | H83: 5.4 | I83: металопластикове вікно
A84: 80 | B84: Еврокопігруп | G84: 2210 | H84: 4 | I84: комплектуючі до комп. Обладн.
A85: 81 | B85: Фоп Моїсеенко | G85: 3110 | H85: =39.9+4.2 -> 44.1 | I85: Принтери
A86: 82 | B86: Укр. Буд. Рішення | G86: 2210 | H86: 2.5 | I86: Шафа телекомунікаційна
A87: 83 | B87: ФОП Степанюк | G87: 2210 | H87: 5.2 | I87: Столи
A88: 84 | B88: ТОВ Елпром | G88: 2210 | H88: 4.9 | I88: запчастини до обладнання
A89: 85 | B89: ТОВ БВД Трейд | G89: 2210 | H89: 7.2 | I89: Комплектуючі до комп"ютерів
A90: 86 | B90: Тов Лакотрейд | G90: 2210 | H90: 7 | I90: госп. товари
A91: 87 | B91: ТОВ Дімленд | G91: 2210 | H91: 7.2 | I91: тех. Сіль
A92: 88 | B92: ФОП Коротченко | G92: 2210 | H92: 7 | I92: Миючі засоби
A93: 89 | B93: ФОП Максимчук | G93: 2210 | H93: 7 | I93: госп. Товари
A94: 90 | B94: Ініціатива + | D94: 6.4 | E94: Акумулятори | F94: =D94 -> 6.4 | G94: 2210 | I94: =E94 -> Акумулятори | J94: =D94 -> 6.4
A95: 91 | B95: БФ Відродження | D95: =37.5+5.8 -> 43.3 | E95: Медикаменти | F95: =D95 -> 43.3 | G95: 2220 | I95: =E95 -> Медикаменти | J95: =D95 -> 43.3
A96: 92 | B96: ГО Асоціація анастезіологів | D96: =2.7+3.1 -> 5.8 | E96: Медикаменти | F96: =D96 -> 5.8 | G96: 2220 | I96: =E96 -> Медикаменти | J96: 5.8
A97: 93 | B97: Юрія фарм | D97: 791.8 | E97: Медикаменти | F97: =D97 -> 791.8 | G97: 2220 | I97: =E97 -> Медикаменти | J97: 791.8
A98: 94 | B98: ТОВ "Iнвада" | G98: 2220 | H98: 48.9 | I98: медикаменти | J98: 0
A99: 95 | B99: ТОВ "АЛТ Україна Лтд" | G99: 2220 | H99: 7.2 | I99: медикаменти | J99: 0
A100: 96 | B100: ТОВ "Дiалог Дiагностiкс" | G100: 2220 | H100: 48.5 | I100: медикаменти | J100: 0
A101: 97 | B101: ТОВ "Лабвiта" | G101: 2220 | H101: 62.3 | I101: реактиви | J101: 0
A102: 98 | B102: ТОВ "Медiпрайм" | G102: 2220 | H102: 36.9 | I102: реактиви | J102: 0
A103: 99 | B103: ТОВ "Нова" | G103: 2220 | H103: 7.2 | I103: медикаменти | J103: 0
A104: 100 | B104: ТОВ "Салюс" | G104: 2220 | H104: 1.3 | I104: аптечка медична | J104: 0
A105: 101 | B105: ТОВ "Смартлаб Солюшен" | G105: 2220 | H105: 502.5 | I105: реактиви
A106: 102 | B106: ТОВ "Торговий Дiм "ВОЛЕС" | G106: 2220 | H106: 20.8 | I106: медикаменти
A107: 103 | B107: ТОВ "Укрмедiаснаб" | G107: 2220 | H107: 1 | I107: реактиви
A108: 104 | B108: ТОВ Фiрма "Крiогенсервiс" | G108: 2220 | H108: 65.3 | I108: кисень
A109: 105 | B109: ФОП Колодницький С.Й. | G109: 2220 | H109: 293.8 | I109: реактиви
A110: 106 | B110: ТОВ "Сенсорнi системи України" | G110: 3110 | H110: 119.3 | I110: інформаційне обладнання
A111: 107 | B111: ФОП Денисенко Д.О. | G111: 3110 | H111: 34.2 | I111: візок медичний
A112: 108 | B112: ФОП Давiскiба I.Є. | G112: 3110 | H112: 33.9 | I112: котел харчо варильний
A113: 109 | B113: ФОП Чорний Олександр Петрович | G113: 3110 | H113: 25 | I113: пристрій знімання кардіограм
A114: 110 | B114: ПП Мальчуковський В.С. | G114: 2210 | H114: 1.3 | I114: медбланки
A115: 111 | B115: ПП Остринська Л.В | G115: 2210 | H115: 7.1 | I115: медбланки
A116: 112 | B116: ПП"ОмелiЯ-сервiс" | G116: 2210 | H116: 55 | I116: Дорожне обладнання
A117: 113 | B117: ТОВ "Аркуш Трейдинг" | G117: 2210 | H117: 33.9 | I117: концтовари
A118: 114 | B118: ТОВ "Видавнича група "АС" | G118: 2210 | H118: 4.5 | I118: періодичне видання
A119: 115 | B119: ТОВ "Дiмлен" | G119: 2210 | H119: 7 | I119: госптовари
A120: 116 | B120: ТОВ "Єврокопi центр" | G120: 2210 | H120: 7.9 | I120: стрічку чекову
A121: 117 | B121: ТОВ "Лiзоформ Медiкал " | G121: 2210 | H121: 7.1 | I121: мопи
A122: 118 | B122: ТОВ "Меркурiй Експрес" | G122: 2210 | H122: 3.1 | I122: періодичне видання
A123: 119 | B123: ТОВ "Меркурiй Експрес" | G123: 2210 | H123: 4.1 | I123: періодичне видання
A124: 120 | B124: ТОВ "МЦФЕР-Україна" | G124: 2210 | H124: 6.9 | I124: журнал Держзакупiвлi
A125: 121 | B125: ТОВ"Український папiр" | G125: 2210 | H125: 18.2 | I125: папір для друку
A126: 122 | B126: ФОП Бiрюкова О.О. | G126: 2210 | H126: 5.4 | I126: стіл маніпуляційний
A127: 123 | B127: ФОП Ващенко Г.В | G127: 2210 | H127: 44.5 | I127: картридж
A128: 124 | B128: ФОП Коротченко А.О. | G128: 2210 | H128: 6.4 | I128: госптовари
A129: 125 | B129: ФОП Макарчук О.С | G129: 2210 | H129: 31.5 | I129: інвалідний візок
A130: 126 | B130: ФОП Небилович О.В. | G130: 2210 | H130: 4.3 | I130: тестер кабелю
A131: 127 | B131: ФОП Небилович О.В. | G131: 2210 | H131: 2.8 | I131: Інструменти
A132: 128 | B132: ФОП Сидоренко С.В. | G132: 2210 | H132: 0.81 | I132: канцтовари
A133: 129 | B133: ФОП Таран М.I. | G133: 2210 | H133: 5.3 | I133: персональний вортекс
A134: 130 | B134: ФОП Шлюпенков О.А. | G134: 2210 | H134: 24.5 | I134: медбланки
A135: 131 | B135: КП "ФАРМАЦIЯ" | G135: 2210 | H135: 0.33 | I135: медбланки
A136: 132 | B136: КП "Головний iнформацiйно-обчислюваний | G136: 2240 | H136: 13.5 | I136: послуги з обслуг.прог. Заб
A137: 133 | B137: КП"Профдезiнфекцiя" | G137: 2240 | H137: 7.2 | I137: послуги дезактивації
A138: 134 | B138: НАСК "Оранта" | G138: 2240 | H138: 0.5 | I138: послуги страхування
A139: 135 | B139: ПАТ"ДАК"Лiки України" | G139: 2240 | H139: 1.7 | I139: послуги зі зберігання
A140: 136 | B140: ПАТ"ДТЕК Київськi електромережi" | G140: 2240 | H140: 4.9 | I140: послуги обсл. Ліч.
A141: 137 | B141: РС СКП"Київський крематорiй" | G141: 2240 | H141: 11.2 | I141: послуги з кремації мед. відх.
A142: 138 | B142: ТОВ "Iнтермедика-Україна" | G142: 2240 | H142: 4.8 | I142: послуги з пот. Рем.обл
A143: 139 | B143: ТОВ "Бест Бiзнес" | G143: 2240 | H143: 18 | I143: послуги інтернету
A144: 140 | B144: ТОВ "Девелопер Полiсся" | G144: 2240 | H144: 42 | I144: послуги з прання білизни
A145: 141 | B145: ТОВ "Електроадвокат" | G145: 2240 | H145: 7 | I145: послуги з інж.проект.
A146: 142 | B146: ТОВ "Єврокопi центр" | G146: 2240 | H146: 50.8 | I146: послуги з пот. Рем.обл
A147: 143 | B147: ТОВ "Олiмп-Безпека Сервiс" | G147: 2240 | H147: 37.6 | I147: послуги з монтажу сигналіз.
A148: 144 | B148: ТОВ "Укрмедлаб" | G148: 2240 | H148: 2.4 | I148: послуги з міжлабор. порівнянь
A149: 145 | B149: ТОВ "Укрреммедтехнiка" | G149: 2240 | H149: 7.7 | I149: послуги з гідростат. Випроб.
A150: 146 | B150: ТОВ НВФ "Iнпроект" | G150: 2240 | H150: 3.2 | I150: послуги з проектування
A151: 147 | B151: ТОВ"Iнформацiйних i аналiтичних технол | G151: 2240 | H151: 5.8 | I151: інформ. Консульт. Послуги
A152: 148 | B152: ТОВ"Компанiя "ЮТАС" | G152: 2240 | H152: 1.5 | I152: послуги з ремонту та т/о
A153: 149 | B153: ТОВ"Центр економiчної освiти" | G153: 2240 | H153: 3 | I153: інформ. Консульт. Послуги
A154: 150 | B154: Управлiння полiцiї охорони в м.Києвi | G154: 2240 | H154: 189.9 | I154: послуги охорони
A155: 151 | B155: ФОП "Кудла" | G155: 2240 | H155: 31.9 | I155: інформ. Консульт. Послуги
A156: 152 | B156: ФОП Баклан О.Ф. | G156: 2240 | H156: 7.1 | I156: ремонт обл. харчоблоку
A157: 153 | B157: ТОВ "Iнтермедика-Україна" | G157: 2240 | H157: 4.8 | I157: послуги з пот. Рем.обл
A158: 154 | B158: ДСП"Київ.держ.мiжобл.спец.комбiнат" | G158: 2240 | H158: 6.3 | I158: послуги з дезактивації одягу
A159: 155 | B159: КМКЛ №7 | G159: 2240 | H159: 26.7 | I159: послуги з мед огляду
A160: 156 | B160: КМНКЛ "Соцiотерапiя" | G160: 2240 | H160: 5.8 | I160: послуги з мед огляду
A161: 157 | B161: КМПД №5 | G161: 2240 | H161: 2.7 | I161: послуги з мед огляду
A162: 158 | B162: КНП "Консул.-дiагност. центр" | G162: 2240 | H162: 2.5 | I162: послуги з мед огляду
A163: 159 | B163: КП "Iнженерний центр" | G163: 2240 | H163: 4.5 | I163: послуги з тех нагляду
A164: 160 | B164: ТОВ"Європейський iнститут держ.управл. | G164: 2282 | H164: 6.2 | I164: навчання персоналу
A165: 161 | B165: СТ"Iнженерний центр експертизи та серт | G165: 2282 | H165: 1.6 | I165: навчання персоналу
A166: 162 | B166: ТОВ"НКЦ "ЕНЕРГIЯ" | G166: 2282 | H166: 21.6 | I166: навчання персоналу
A167: 163 | B167: ТОВ "БПФ Україна" | G167: 3132 | H167: 173 | I167: Капітальний ремонт
A168: 164 | B168: ТОВ "Електромережбуд-7" | G168: 3132 | H168: 3.5 | I168: Капітальний ремонт
B170: ВСЬОГО по закладу | C170: =SUM(C5:C32) -> 7295.1 | D170: =SUM(D5:D169) -> 51862.9 | E170: =SUM(E5:E169) -> 0 | F170: =SUM(F5:F169) -> 59158 | H170: =SUM(H6:H169) -> 3690.7 | I170: =SUM(I6:I169) -> 0 | J170: =SUM(J6:J169) -> 51862.9 | K170: =C170-H170 -> 3604.4
B171: Керівник установи | I171: Кондратенко А.В.
A172: (підпис) (ініціали і прізвище)
B173: Головний бухгалтер | I173: Мамонова Т.Й.
F174: (підпис) (ініціали і прізвище)

Sheet соціотерапія
M1: Додаток до листа
M2: від ________ 2019 № ______
B3: ІНФОРМАЦІЯ про надходження і використання благодійних пожертв від фізичних та юридичних осіб Київська міська наркологічна клінічна лікарня "Соціотерапія" за ІV квартал 2019 року
A4: найменування закладу охорони здоров′я
A5: № пп | B5: Найменування юридичної особи (або позначення фізичної особи) | C5: Благодійні пожертви, що були отримані закладом охорони здоров'я від фізичних та юридичних осіб | F5: Всього отримано благодійних пожертв, тис. грн | G5: Використання закладом охорони здоров'я благодійних пожертв, отриманих у грошовій (товари і послуг) формі | K5: Залишок невикористаних грошових коштів, товарів та послуг на кінець звітного періоду, тис. грн
C6: В грошовій форм, тис. грн | D6: В натуральній формі (товари і послуги), тис. грн | E6: Перелік товарів і послуг в натуральній формі (канцтовари, господарські товари, будівельні товари, медикаменти та перев'язувальні матеріали, продукти харчування, м"який інвентар, основні засоби та інші) | G6: Напрямки використання у грошовій формі (стаття витрат) | H6: Сума, тис. грн | I6: Перелік використаних товарів та послуг у натуральній формі (канцтовари, господарські товари, будівельні товари, медикаменти та перев'язувальні матеріали, продукти харчування, м"який інвентар, основні засоби та інші) | J6: Сума, тис. грн
B7: БФ"Фундація Антиснід-України" | D7: =3104/1000 -> 3.104 | E7: канцтовари | F7: =SUM(C7,D7) -> 3.104 | I7: канцтовари | J7: =D7 -> 3.104
B8: ФОП | D8: 2 | E8: ІНМА | F8: =SUM(C8,D8) -> 2 | I8: ІНМА | J8: =D8 -> 2
B9: Фізична особа | C9: 179.85 | D9: 0 | F9: =SUM(C9,D9) -> 179.85 | G9: 2210,2220,3110 | H9: 80.84 | I9: канцтовари,медикаменти,навчання | J9: 0 | K9: 7.09
B10: БФ"Фундація Антиснід-України" | D10: 36.869 | E10: вироби медичного призначення | F10: 36.869 | I10: вироби медичного призначення | J10: 36.869
B11: МБФ"Альянс громадського здоровя | D11: 163.2764 | E11: вироби медичного призначення | F11: 163.2764 | I11: вироби медичного призначення | J11: 163.2764
B12: БО"Укріїнський інститут політики громадського здоровя" | D12: 92.41 | E12: вироби медичного призначення | F12: 92.41 | I12: вироби медичного призначення | J12: 92.41
B13: БаДМ ТОВ | D13: 26.869 | F13: 26.869 | J13: 26.869
B14: Фармація КП | D14: 56.06 | E14: медикаменти | F14: 56.06 | I14: медикаменти | J14: 56.06
B15: ДП2Укрмедпостач"МОЗ України | D15: 1493.87 | E15: медикаменти | F15: 1493.87 | I15: медикаменти | J15: 1493.8723
B16: АК "КБ "Приватбанк" | D16: 3.3 | E16: ІНМА | F16: 3.3 | I16: ІНМА | J16: =D16 -> 3.3
F17: 0
F18: 0
F19: 0
F20: 0
F21: 0
F22: 0
F23: 0
F24: 0
F25: 0
F26: 0
F27: 0
F28: 0
F29: 0
F30: 0
F31: 0
F32: 0
F33: 0
F34: 0
F35: 0
F36: 0
F37: 0
F38: 0
F39: 0
F40: 0
F41: 0
F42: 0
F43: 0
F44: 0
F45: 0
F46: 0
F47: 0
F48: 0
F49: 0
F50: 0
B51: ВСЬОГО по закладу | C51: =SUM(C7:C50) -> 179.85 | D51: =SUM(D7:D50) -> 1877.7584 | F51: 2057.6084 | H51: =SUM(H7:H50) -> 80.84 | J51: =SUM(J7:J50) -> 1877.7607 | K51: =C51-H51 -> 99.01
B54: Керівник установи
F55: (підпис) (ініціали і прізвище)
B56: Головний бухгалтер
F57: (підпис) (ініціали і прізвище)

Sheet чорнобиль
M1: Додаток до листа
M2: Від 28.12.2019 2019 № 061-12683
B3: ІНФОРМАЦІЯ про надходження і використання благодійних пожертв від фізичних та юридичних осіб по Київському міському центрі радіаційного захисту населення м.Києва від наслідків Чорнобильської катастрофи за ІV квартал 2019 року
A5: № пп | B5: Найменування юридичної особи (або позначення фізичної особи) | C5: Благодійні пожертви, що були отримані закладом охорони здоров'я від фізичних та юридичних осіб | F5: Всього отримано благодійних пожертв, тис. грн | G5: Використання закладом охорони здоров'я благодійних пожертв, отриманих у грошовій (товари і послуг) формі | K5: Залишок невикористаних грошових коштів, товарів та послуг на кінець звітного періоду, тис. грн
C6: В грошовій форм, тис. грн | D6: В натуральній формі (товари і послуги), тис. грн | E6: Перелік товарів і послуг в натуральній формі (канцтовари, господарські товари, будівельні товари, медикаменти та перев'язувальні матеріали, продукти харчування, м"який інвентар, основні засоби та інші) | G6: Напрямки використання у грошовій формі (стаття витрат) | H6: Сума, тис. грн | I6: Перелік використаних товарів та послуг у натуральній формі (канцтовари, господарські товари, будівельні товари, медикаменти та перев'язувальні матеріали, продукти харчування, м"який інвентар, основні засоби та інші) | J6: Сума, тис. грн
A7: 1 | B7: Фізичні особи | C7: 32.7 | F7: =SUM(C7,D7) -> 32.7
A8: 2 | B8: Міжнародна благодійна організація “Козацький фонд Альбатрос” | D8: 1.71 | E8: предмети ,матеріали та інвентар | F8: 1.71 | I8: предмети ,матеріали та інвентар | J8: =D8 -> 1.71
A9: 3 | B9: ТОВ “ГЛЕДФАРМ ЛТД” | D9: 4.09 | E9: Медикаменти та перев”язувальні матеріали | F9: 4.09 | I9: Медикаменти та перев”язувальні матеріали | J9: =D9 -> 4.09
A10: 4 | B10: Фізичні особи | D10: 0.71 | E10: предмети ,матеріали та інвентар | F10: 0.71 | I10: предмети ,матеріали та інвентар | J10: =D10 -> 0.71
F11: 0 | G11: 3110 | H11: 26.4 | I11: Придбання обладнання і предметів довгострокового користування
F12: 0
F13: 0
F14: 0
F15: 0
F16: 0
F17: 0
F18: 0
F19: 0
F20: 0
F21: 0
F22: 0
F23: 0
F24: 0
F25: 0
F26: 0
F27: 0
F28: 0
F29: 0
F30: 0
F31: 0
F32: 0
F33: 0
F34: 0
F35: 0
F36: 0
F37: 0
F38: 0
F39: 0
F40: 0
F41: 0
F42: 0
F43: 0
F44: 0
F45: 0
F46: 0
F47: 0
F48: 0
F49: 0
B50: ВСЬОГО по закладу | C50: =SUM(C7:C49) -> 32.7 | D50: =SUM(D7:D49) -> 6.51 | F50: 39.21 | H50: =SUM(H7:H49) -> 26.4 | J50: =SUM(J7:J49) -> 6.51 | K50: =C50-H50 -> 6.3
B52: Керівник установи | G52: Н.М.Поліщук
F53: (підпис) (ініціали і прізвище)
B54: Головний бухгалтер | G54: А.Ю.Дерій
F55: (підпис) (ініціали і прізвище)

Sheet центр мікрохірургії ока
M1: Додаток до листа
M2: від ________ 2018 № ______
B3: ІНФОРМАЦІЯ про надходження і використання благодійних пожертв від фізичних та юридичних осіб Київська міська клінічна офтальмологічна лікарня "Центр мікрохірургії ока" за ІV квартал 2019 року
A4: найменування закладу охорони здоров′я
A5: № пп | B5: Найменування юридичної особи (або позначення фізичної особи) | C5: Благодійні пожертви, що були отримані закладом охорони здоров'я від фізичних та юридичних осіб | F5: Всього отримано благодійних пожертв, тис. грн | G5: Використання закладом охорони здоров'я благодійних пожертв, отриманих у грошовій (товари і послуг) формі | K5: Залишок невикористаних грошових коштів, товарів та послуг на кінець звітного періоду, тис. грн
C6: В грошовій форм, тис. грн | D6: В натуральній формі (товари і послуги), тис. грн | E6: Перелік товарів і послуг в натуральній формі (канцтовари, господарські товари, будівельні товари, медикаменти та перев'язувальні матеріали, продукти харчування, м"який інвентар, основні засоби та інші) | G6: Напрямки використання у грошовій формі (стаття витрат) | H6: Сума, тис. грн | I6: Перелік використаних товарів та послуг у натуральній формі (канцтовари, господарські товари, будівельні товари, медикаменти та перев'язувальні матеріали, продукти харчування, м"який інвентар, основні засоби та інші) | J6: Сума, тис. грн
A7: 1 | B7: Фізичні особи | C7: 7.15 | D7: 250.5 | E7: ремонтні роботи | F7: =SUM(C7,D7) -> 257.65 | I7: рементні роботи | J7: 250.5
A8: 2 | F8: =SUM(C8,D8) -> 0
A9: 3 | F9: 0
A10: 4 | F10: 0
A11: 5 | F11: 0
A12: 6 | F12: 0
F13: 0
F14: 0
F15: 0
F16: 0
F17: 0
F18: 0
F19: 0
F20: 0
F21: 0
F22: 0
F23: 0
F24: 0
F25: 0
F26: 0
F27: 0
F28: 0
F29: 0
F30: 0
F31: 0
F32: 0
F33: 0
F34: 0
F35: 0
F36: 0
F37: 0
F38: 0
F39: 0
F40: 0
F41: 0
F42: 0
F43: 0
F44: 0
F45: 0
F46: 0
F47: 0
F48: 0
F49: 0
B50: ВСЬОГО по закладу | C50: =SUM(C7:C49) -> 7.15 | D50: =SUM(D7:D49) -> 250.5 | F50: 257.65 | H50: =SUM(H7:H49) -> 0 | J50: =SUM(J7:J49) -> 250.5 | K50: =C50-H50 -> 7.15
B53: Заступник головного лікаря з амбулаторно-поліклінічної роботи | G53: Лява В.Б.
F54: (підпис) (ініціали і прізвище)
B55: Головний бухгалтер | G55: Ляшенко К.І.
F56: (підпис) (ініціали і прізвище)

Sheet центр спорт медицини
M1: Додаток до листа
M2: від ________ 2018 № ______
B3: ІНФОРМАЦІЯ про надходження і використання благодійних пожертв від фізичних та юридичних осіб КНП Центр спортивної медицини міста Києва за 4 квартал 2019 року
A4: найменування закладу охорони здоров′я
A5: № пп | B5: Найменування юридичної особи (або позначення фізичної особи) | C5: Благодійні пожертви, що були отримані закладом охорони здоров'я від фізичних та юридичних осіб | F5: Всього отримано благодійних пожертв, тис. грн | G5: Використання закладом охорони здоров'я благодійних пожертв, отриманих у грошовій (товари і послуг) формі | K5: Залишок невикористаних грошових коштів, товарів та послуг на кінець звітного періоду, тис. грн
C6: В грошовій форм, тис. грн | D6: В натуральній формі (товари і послуги), тис. грн | E6: Перелік товарів і послуг в натуральній формі (канцтовари, господарські товари, будівельні товари, медикаменти та перев'язувальні матеріали, продукти харчування, м"який інвентар, основні засоби та інші) | G6: Напрямки використання у грошовій формі (стаття витрат) | H6: Сума, тис. грн | I6: Перелік використаних товарів та послуг у натуральній формі (канцтовари, господарські товари, будівельні товари, медикаменти та перев'язувальні матеріали, продукти харчування, м"який інвентар, основні засоби та інші) | J6: Сума, тис. грн
A7: 1 | B7: Фізична особа | C7: 1243 | F7: =SUM(C7,D7) -> 1243 | G7: 2210 | H7: 201.1
F8: =SUM(C8,D8) -> 0 | G8: 2220 | H8: 25.5
F9: 0 | G9: 2230 | H9: 55.9
F10: 0 | G10: 2240 | H10: 215.1
F11: 0 | G11: 2280 | H11: 24.5
F12: 0 | G12: 3110 | H12: 306
F13: 0
F14: 0
F15: 0
F16: 0
F17: 0
F18: 0
F19: 0
F20: 0
F21: 0
F22: 0
F23: 0
F24: 0
F25: 0
F26: 0
F27: 0
F28: 0
F29: 0
F30: 0
F31: 0
F32: 0
F33: 0
F34: 0
F35: 0
F36: 0
F37: 0
F38: 0
F39: 0
F40: 0
F41: 0
F42: 0
F43: 0
F44: 0
F45: 0
F46: 0
F47: 0
F48: 0
F49: 0
B50: ВСЬОГО по закладу | C50: =SUM(C7:C49) -> 1243 | D50: =SUM(D7:D49) -> 0 | F50: 1243 | H50: =SUM(H7:H49) -> 828.1 | J50: =SUM(J7:J49) -> 0 | K50: =C50-H50 -> 414.9
B53: Керівник установи
F54: (підпис) (ініціали і прізвище)
B55: Головний бухгалтер
F56: (підпис) (ініціали і прізвище)

Sheet трансп кіст мозку
B2: ІНФОРМАЦІЯ про надходження і використання благодійних пожертв від фізичних та юридичних осіб Київський центр трансплантації кісткового мозку за ІV квартал 2019 року
A3: найменування закладу охорони здоров′я
A4: № пп | B4: Найменування юридичної особи (або позначення фізичної особи) | C4: Благодійні пожертви, що були отримані закладом охорони здоров'я від фізичних та юридичних осіб | F4: Всього отримано благодійних пожертв, тис. грн | G4: Використання закладом охорони здоров'я благодійних пожертв, отриманих у грошовій (товари і послуг) формі | K4: Залишок невикористаних грошових коштів, товарів та послуг на кінець звітного періоду, тис. грн
C5: В грошовій форм, тис. грн | D5: В натуральній формі (товари і послуги), тис. грн | E5: Перелік товарів і послуг в натуральній формі (канцтовари, господарські товари, будівельні товари, медикаменти та перев'язувальні матеріали, продукти харчування, м"який інвентар, основні засоби та інші) | G5: Напрямки використання у грошовій формі (стаття витрат) | H5: Сума, тис. грн | I5: Перелік використаних товарів та послуг у натуральній формі (канцтовари, господарські товари, будівельні товари, медикаменти та перев'язувальні матеріали, продукти харчування, м"який інвентар, основні засоби та інші) | J5: Сума, тис. грн
A6: 1 | B6: КНП "Київський міський центр крові" | D6: 284.28 | E6: гемотрансфузійні засоби | F6: =C6+D6 -> 284.28 | I6: гемотрансфузійні засоби | J6: 293.51
A7: 2 | B7: КЛПЗ "Чернігівська обласна дитяча лікарня" | D7: 18.039 | E7: медикаменти | F7: =C7+D7 -> 18.039 | G7: 2220 | H7: 9.93 | I7: медикаменти | J7: 18.19
A8: 3 | B8: Фізична особа | C8: 1.771 | E8: медикаменти | F8: =SUM(C8,D8) -> 1.771 | G8: 2210 | H8: 9.5 | I8: господарчі товари
A9: 4 | B9: ТОВ "ТРАНСМЕД" | D9: 1177 | E9: основні засоби | F9: 1177 | G9: 2210 | H9: 4.398 | I9: попередня оплата за періодичні видання
F10: 0 | I10: інші необоротні активи | J10: 1.88
F11: 0
F12: 0
B13: ВСЬОГО по закладу | C13: =SUM(C6:C12) -> 1.771 | D13: =SUM(D6:D12) -> 1479.319 | F13: 1481.09 | H13: =SUM(H6:H12) -> 23.828 | J13: =SUM(J6:J12) -> 313.58 | K13: =C13-H13 -> -22.057
B18: Голова комісії з реорганізації | G18: Бодня А.О.
F19: (підпис) (ініціали і прізвище)
B20: Заступник голови комісії з реорганізації | G20: Ригалюк О.І.
F21: (підпис) (ініціали і прізвище)
B24: Виконавець: Аврашко О.А. тел.451-15-80

Sheet дитяч нейрохірургія
M1: Додаток до листа
M2: від ________ 2019 № ______
B3: ІНФОРМАЦІЯ про надходження і використання благодійних пожертв від фізичних та юридичних осіб _Київський міський центр дитячої нейрохірургії_за_IV_квартал_2019_року
A4: найменування закладу охорони здоров′я
A5: № пп | B5: Найменування юридичної особи (або позначення фізичної особи) | C5: Благодійні пожертви, що були отримані закладом охорони здоров'я від фізичних та юридичних осіб | F5: Всього отримано благодійних пожертв, тис. грн | G5: Використання закладом охорони здоров'я благодійних пожертв, отриманих у грошовій (товари і послуг) формі | K5: Залишок невикористаних грошових коштів, товарів та послуг на кінець звітного періоду, тис. грн
C6: В грошовій форм, тис. грн | D6: В натуральній формі (товари і послуги), тис. грн | E6: Перелік товарів і послуг в натуральній формі (канцтовари, господарські товари, будівельні товари, медикаменти та перев'язувальні матеріали, продукти харчування, м"який інвентар, основні засоби та інші) | G6: Напрямки використання у грошовій формі (стаття витрат) | H6: Сума, тис. грн | I6: Перелік використаних товарів та послуг у натуральній формі (канцтовари, господарські товари, будівельні товари, медикаменти та перев'язувальні матеріали, продукти харчування, м"який інвентар, основні засоби та інші) | J6: Сума, тис. грн
A7: 1 | B7: Фізична особа | C7: 26.46 | F7: =SUM(C7,D7) -> 26.46 | I7: Проїздний квиток | J7: 1.74
A8: 2 | B8: ТОВ "НПЦНР Нодус" | C8: 17.06 | F8: =SUM(C8,D8) -> 17.06 | I8: Оплата водопостачання та водовідвелення | J8: 6.728
F9: 0 | G9: 2250 | H9: 1.74 | I9: Оплата електроенергіі | J9: 5.95
F10: 0 | G10: 2272 | H10: 6.728 | I10: Оплата послуг з метрологічних повірок | J10: 3.5
F11: 0 | G11: 2273 | H11: 5.95 | I11: Оплата послуг програмного забезпечення | J11: 15.006
F12: 0 | G12: 2240 | H12: 18.506
F13: 0
F14: 0
F15: 0
F16: 0
F17: 0
F18: 0
F19: 0
F20: 0
F21: 0
F22: 0
F23: 0
F24: 0
F25: 0
F26: 0
F27: 0
F28: 0
F29: 0
F30: 0
F31: 0
F32: 0
F33: 0
F34: 0
F35: 0
F36: 0
F37: 0
F38: 0
F39: 0
F40: 0
F41: 0
F42: 0
F43: 0
F44: 0
F45: 0
F46: 0
F47: 0
F48: 0
F49: 0
B50: ВСЬОГО по закладу | C50: =SUM(C7:C49) -> 43.52 | D50: =SUM(D7:D49) -> 0 | F50: 43.52 | H50: =SUM(H7:H49) -> 32.924 | J50: =SUM(J7:J49) -> 32.924 | K50: =C50-H50 -> 10.596
B53: Головний лікар | G53: Гончарук О.Б.
F54: (підпис) (ініціали і прізвище)
B55: Головний бухгалтер | G55: Болтенко О.Г.
F56: (підпис) (ініціали і прізвище)

Sheet академія здоров людини
M1: Додаток до листа
M2: від ________ 2019 № ______
B3: ІНФОРМАЦІЯ про надходження і використання благодійних пожертв від фізичних та юридичних осіб КНП "Академія здоров'я людини"_за IV квартал 2019 року
A4: найменування закладу охорони здоров′я
A5: № пп | B5: Найменування юридичної особи (або позначення фізичної особи) | C5: Благодійні пожертви, що були отримані закладом охорони здоров'я від фізичних та юридичних осіб | F5: Всього отримано благодійних пожертв, тис. грн | G5: Використання закладом охорони здоров'я благодійних пожертв, отриманих у грошовій (товари і послуг) формі | K5: Залишок невикористаних грошових коштів, товарів та послуг на кінець звітного періоду, тис. грн
C6: В грошовій форм, тис. грн | D6: В натуральній формі (товари і послуги), тис. грн | E6: Перелік товарів і послуг в натуральній формі (канцтовари, господарські товари, будівельні товари, медикаменти та перев'язувальні матеріали, продукти харчування, м"який інвентар, основні засоби та інші) | G6: Напрямки використання у грошовій формі (стаття витрат) | H6: Сума, тис. грн | I6: Перелік використаних товарів та послуг у натуральній формі (канцтовари, господарські товари, будівельні товари, медикаменти та перев'язувальні матеріали, продукти харчування, м"який інвентар, основні засоби та інші) | J6: Сума, тис. грн
A7: 1 | B7: Фізична особа | C7: 588.1 | F7: =SUM(C7,D7) -> 588.1 | G7: 2240 | H7: 0.3 | I7: касове обслуг,
A8: 2 | F8: =SUM(C8,D8) -> 0 | G8: 2230 | H8: 42.4 | I8: харчування
F9: 0 | G9: 2220 | H9: 10.7 | I9: медикаменти
F10: 0 | G10: 3110 | H10: 534.7 | I10: медичне обладнання
F11: 0
F12: 0
F13: 0
F14: 0
F15: 0
F16: 0
F17: 0
F18: 0
F19: 0
F20: 0
F21: 0
F22: 0
F23: 0
F24: 0
F25: 0
F26: 0
F27: 0
F28: 0
F29: 0
F30: 0
F31: 0
F32: 0
F33: 0
F34: 0
F35: 0
F36: 0
F37: 0
F38: 0
F39: 0
F40: 0
F41: 0
F42: 0
F43: 0
F44: 0
F45: 0
F46: 0
F47: 0
F48: 0
F49: 0
B50: ВСЬОГО по закладу | C50: =SUM(C7:C49) -> 588.1 | D50: =SUM(D7:D49) -> 0 | F50: 588.1 | H50: =SUM(H7:H49) -> 588.1 | J50: =SUM(J7:J49) -> 0 | K50: =C50-H50 -> 0
B53: Директор | G53: Чермак І.І.
F54: (підпис) (ініціали і прізвище)
B55: Головний бухгалтер | G55: Затуливітер О.В.
F56: (підпис) (ініціали і прізвище)
